bitfinex/quotes_ETHUSD_20250605
["timestamp","ask_amount","ask_price","bid_price","bid_amount"]
[1749156401564,11.708,2431.4,2430.9,4.11362826]
[1749156401765,11.708,2431.4,2430.8,4.11386139]
[1749156401766,4.11278242,2431.5,2431.0,0.82274897]
[1749156401978,11.698,2431.6,2430.4,0.40510918]
[1749156402178,11.698,2431.6,2430.4,16.0]
[1749156402179,4.11345763,2431.1,2430.4,16.0]
[1749156402353,11.698,2431.6,2430.1,17.5719]
[1749156402553,11.698,2431.6,2430.1,1.5719]
[1749156402763,4.11430682,2430.6,2430.1,1.5719]
[1749156403092,4.11455084,2430.4,2430.1,1.5719]
[1749156403291,4.11455084,2430.4,2429.7,4.11572157]
[1749156403292,4.11483826,2430.3,2429.7,4.11572157]
[1749156403595,4.1130162,2431.4,2430.1,4.11505699]
[1749156403764,4.11312081,2431.3,2429.7,18.06313699]
[1749156404097,11.655,2431.7,2431.2,4.11308676]
[1749156404276,4.11254243,2431.6,2431.1,4.11329493]
[1749156404481,11.655,2431.7,2430.9,8.894]
[1749156404664,4.11150398,2432.2,2431.2,4.1131671]
[1749156404864,11.635,2431.8,2431.1,0.73096885]
[1749156405280,11.627,2432.0,2431.6,4.11246658]
[1749156405464,4.46081816,2432.2,2431.1,0.73096885]
[1749156405465,0.18811632,2431.9,2431.1,0.73096885]
[1749156405663,0.18811632,2431.9,2431.7,4.11222536]
[1749156405900,0.34924166,2432.2,2431.5,16.0]
[1749156406112,0.34924166,2432.2,2431.5,4.11261422]
[1749156406392,0.34924166,2432.2,2432.1,4.66167303]
[1749156406592,0.34924166,2432.2,2432.1,4.11167303]
[1749156406799,0.34924166,2432.2,2432.1,5.10007235]
[1749156406998,0.34924166,2432.2,2432.1,21.10007235]
[1749156407181,0.34924166,2432.2,2429.9,1.5069]
[1749156407182,4.11167303,2432.1,2429.9,1.5069]
[1749156407383,4.11471834,2430.3,2429.9,0.34354607]
[1749156407585,4.11505699,2430.1,2428.9,1.5069]
[1749156407757,11.732,2430.0,2428.8,200.0]
[1749156408096,4.1155265,2429.9,2428.8,200.0]
[1749156408299,11.732,2430.0,2428.9,4.10669185]
[1749156408614,11.798,2430.0,2429.2,4.11645094]
[1749156408757,4.11513031,2430.1,2429.5,4.11602764]
[1749156409115,11.791,2430.0,2429.6,13.00989766]
[1749156409421,11.774,2430.3,2429.8,4.1154553]
[1749156409593,11.774,2430.2,2429.8,1.71253183]
[1749156409759,1.5839,2430.9,2430.1,4.11494317]
[1749156409957,1.5839,2430.9,2430.3,4.11461313]
[1749156409958,11.764,2430.9,2430.3,4.11461313]
[1749156410190,11.764,2430.9,2429.8,5.82802843]
[1749156410191,0.18704924,2430.8,2429.8,1.71253183]
[1749156410378,4.11436679,2430.6,2429.9,4.115366]
[1749156410559,0.18704924,2430.8,2430.0,0.58278978]
[1749156410756,4.11425195,2430.6,2429.8,1.71253183]
[1749156411007,0.18704924,2430.8,2430.3,4.11461505]
[1749156411169,4.11404122,2430.7,2430.1,4.11500586]
[1749156411559,0.18704924,2430.8,2429.8,1.71253183]
[1749156411756,0.18704924,2430.8,2429.6,8.894]
[1749156411961,4.11489416,2430.2,2429.6,8.894]
[1749156412186,15.84515718,2430.1,2429.6,8.894]
[1749156412369,4.11573445,2429.7,2429.6,8.894]
[1749156412572,11.73,2430.1,2428.1,1.6338]
[1749156412815,4.11603662,2429.6,2428.1,10.5278]
[1749156412997,4.11672445,2429.2,2428.8,204.10669185]
[1749156413200,11.708,2429.1,2428.8,204.10669185]
[1749156413705,4.115775,2429.7,2428.8,204.10669185]
[1749156413911,11.679,2429.6,2428.9,4.11709004]
[1749156414066,11.664,2429.5,2429.1,4.11658342]
[1749156414268,11.664,2429.5,2428.8,204.10669185]
[1749156414468,4.11685017,2429.1,2428.8,200.0]
[1749156414669,4.11659324,2429.2,2428.8,200.0]
[1749156414867,4.11709004,2428.9,2428.8,200.0]
[1749156415065,15.76609004,2428.9,2428.8,200.0]
[1749156415305,11.649,2428.9,2428.8,200.0]
[1749156415517,4.11632982,2429.4,2428.8,208.22389032]
[1749156415672,11.643,2429.2,2428.8,204.10669185]
[1749156416110,11.63,2429.1,2428.8,204.10669185]
[1749156416317,1.6092,2429.6,2428.8,204.10669185]
[1749156416318,11.63,2429.0,2428.8,204.10669185]
[1749156416682,1.6455,2430.0,2428.8,204.10669185]
[1749156416995,4.11643781,2429.3,2428.9,4.10669185]
[1749156417207,11.603,2429.2,2428.9,4.10669185]
[1749156417385,15.7107008,2429.2,2428.9,4.10669185]
[1749156417588,4.11676805,2429.1,2428.9,4.10669185]
[1749156417789,4.11709004,2428.9,2428.8,200.0]
[1749156418744,11.56,2428.9,2428.8,200.0]
[1749156418889,5.6395287,2429.5,2428.8,200.0]
[1749156419085,11.553,2429.4,2429.0,4.11682035]
[1749156419434,0.18704924,2429.3,2428.8,200.0]
[1749156419729,0.18704924,2429.3,2428.9,4.11708235]
[1749156419888,0.18704924,2429.3,2429.0,4.11682216]
[1749156420217,0.18704924,2429.3,2428.8,208.2238761]
[1749156420420,0.18704924,2429.3,2428.8,200.0]
[1749156420925,11.69504924,2429.3,2428.8,200.0]
[1749156421098,11.69504924,2429.3,2428.8,204.11722558]
[1749156421301,16.52557122,2428.9,2428.8,200.0]
[1749156421502,44.03857122,2428.9,2428.8,199.88985776]
[1749156421712,5.70349004,2428.9,2428.8,199.88985776]
[1749156421915,17.20949004,2428.9,2428.8,199.88985776]
[1749156422123,15.80692509,2428.9,2428.8,199.88985776]
[1749156422346,33.94332509,2428.9,2428.8,179.31570963]
[1749156422489,34.29423319,2428.9,2428.8,172.13265281]
[1749156422832,44.76540627,2428.9,2428.8,172.13265281]
[1749156423387,28.74340627,2428.9,2428.8,172.13265281]
[1749156423614,5.89132509,2428.9,2428.8,172.13265281]
[1749156423826,11.66383505,2428.9,2428.8,172.13265281]
[1749156424027,4.11675106,2429.1,2428.8,172.13265281]
[1749156424243,4.11658952,2429.2,2428.8,172.67094092]
[1749156424244,11.464,2429.2,2428.8,172.67094092]
[1749156424420,1.6053,2430.4,2429.0,16.0]
[1749156424591,11.455,2430.3,2429.3,16.0]
[1749156424794,1.6053,2430.9,2429.3,16.0]
[1749156425020,4.11433908,2430.6,2430.0,4.11514233]
[1749156425222,1.6053,2431.5,2430.0,16.0]
[1749156425437,1.6053,2431.5,2430.1,20.11494653]
[1749156425438,5.71801528,2431.5,2430.1,20.11494653]
[1749156425734,11.434,2431.4,2430.1,1.6132]
[1749156425938,11.433,2431.3,2430.4,16.55]
[1749156426257,1.6053,2432.1,2430.6,16.0]
[1749156426258,11.43,2431.2,2430.6,16.0]
[1749156426394,11.43,2431.2,2430.7,4.11404122]
[1749156426595,11.43,2431.2,2430.5,10.96547183]
[1749156426842,11.43,2431.2,2430.5,13.01332467]
[1749156426843,4.11346856,2431.1,2430.5,13.01332467]
[1749156427009,15.54325426,2431.2,2430.6,4.11408942]
[1749156427208,4.11346481,2431.1,2430.5,13.013323]
[1749156427406,4.1118421,2432.0,2430.5,8.899]
[1749156427607,0.34924166,2432.2,2430.5,8.899]
[1749156427608,4.11421048,2430.6,2430.5,8.899]
[1749156427814,4.11330153,2431.2,2430.6,4.11415416]
[1749156428010,11.377,2431.1,2430.9,4.11363893]
[1749156428335,1.6053,2432.1,2430.7,4.11404122]
[1749156428336,11.375,2431.3,2430.7,4.11404122]
[1749156428541,0.34924166,2432.2,2430.9,4.11370274]
[1749156428710,0.34924166,2432.2,2431.0,4.11353352]
[1749156428910,0.34924166,2432.2,2432.1,4.11167303]
[1749156429733,11.344,2432.8,2432.4,4.11105867]
[1749156429935,0.20909455,2432.9,2432.1,1.86487009]
[1749156430122,11.331,2432.8,2432.0,1.5282]
[1749156430434,4.1118421,2432.0,2431.9,8.897]
[1749156430608,11.316,2432.0,2431.0,1.5282]
[1749156431008,11.316,2432.0,2430.9,8.894]
[1749156431221,4.11353352,2431.0,2430.9,8.894]
[1749156431421,1.5072,2432.3,2431.1,4.11333601]
[1749156431638,1.6077,2432.8,2431.8,4.11217052]
[1749156431844,1.6077,2432.8,2432.1,4.1116668]
[1749156432015,11.284,2432.7,2431.2,4.11319512]
[1749156432211,0.20909455,2432.9,2432.6,4.11081489]
[1749156432425,0.20909455,2432.9,2432.7,4.11063559]
[1749156432627,0.20909455,2432.9,2432.3,13.00531858]
[1749156432927,0.20909455,2432.9,2432.4,1.6072]
[1749156433125,0.20909455,2432.9,2432.4,5.71829286]
[1749156433440,0.20909455,2432.9,2432.8,4.11048997]
[1749156433955,0.00709455,2432.9,2432.4,1.6072]
[1749156434266,1.6174,2434.5,2432.3,8.894]
[1749156434420,4.10846949,2434.0,2432.9,4.11032101]
[1749156434614,4.10846949,2434.0,2432.8,1.5567]
[1749156434615,15.36180844,2434.4,2432.8,1.5567]
[1749156434810,11.254,2434.4,2432.8,1.5567]
[1749156435014,1.6174,2433.0,2431.7,1.5567]
[1749156435216,11.256,2432.9,2431.7,1.5567]
[1749156435445,4.11199374,2432.0,2431.7,1.5567]
[1749156435749,4.10900305,2433.7,2431.7,1.5567]
[1749156435969,4.10900305,2433.7,2431.3,9.30567448]
[1749156435970,1.84351399,2434.4,2431.5,1.5567]
[1749156436148,0.8927297,2435.1,2431.8,16.0]
[1749156436149,1.6174,2433.6,2431.8,16.0]
[1749156436345,11.24,2433.5,2431.9,4.11201118]
[1749156436667,4.10853723,2434.0,2432.7,1.5958]
[1749156436816,1.6358,2434.1,2433.1,4.10993365]
[1749156437016,4.10878457,2433.9,2432.8,8.89]
[1749156437247,4.10829653,2434.1,2432.8,9.93858]
[1749156437548,4.10831221,2434.1,2433.5,4.10916955]
[1749156437763,4.10820894,2434.2,2433.6,4.10900687]
[1749156438065,1.6358,2434.7,2433.2,4.10980022]
[1749156438066,4.10846343,2434.0,2433.2,4.10980022]
[1749156438210,1.6358,2434.7,2433.2,16.0]
[1749156438414,11.202,2434.6,2433.3,6.12062106]
[1749156438610,15.29866278,2434.5,2433.8,4.10879081]
[1749156438840,4.10816715,2434.2,2433.6,16.0]
[1749156439161,15.2981322,2434.8,2433.6,4.10912221]
[1749156439469,4.10728221,2434.7,2433.4,1.5958]
[1749156439617,4.10822366,2434.2,2433.4,1.5958]
[1749156439813,11.163,2434.7,2433.4,1.5958]
[1749156440270,4.10822612,2434.2,2433.4,1.5958]
[1749156440579,11.163,2434.7,2433.4,1.5958]
[1749156440853,15.27033172,2434.7,2433.4,1.5958]
[1749156441153,4.10916988,2433.6,2433.4,1.5958]
[1749156441327,4.10916988,2433.6,2432.1,15.26051408]
[1749156441328,4.10896988,2433.7,2432.9,10.534]
[1749156441523,11.149,2433.8,2432.9,10.534]
[1749156441725,4.11011412,2433.1,2432.9,10.534]
[1749156442059,15.25415207,2433.0,2432.9,8.887]
[1749156442468,11.134,2433.2,2432.9,8.887]
[1749156442622,4.10936834,2433.5,2432.9,8.887]
[1749156442969,11.129,2433.5,2432.9,12.99723029]
[1749156443164,4.10849453,2434.0,2432.9,8.887]
[1749156443165,4.10975314,2433.3,2432.9,8.887]
[1749156443363,4.10947645,2433.4,2432.9,8.887]
[1749156443523,4.11015207,2433.0,2432.9,8.887]
[1749156443718,4.10981112,2433.3,2432.9,8.887]
[1749156443923,4.11015207,2433.0,2432.9,8.887]
[1749156444347,4.11015207,2433.0,2429.5,2.5948388]
[1749156444348,4.11035822,2432.9,2431.9,10.5039]
[1749156444555,4.11015207,2433.0,2431.9,10.5039]
[1749156444933,11.08,2432.9,2431.9,10.5039]
[1749156445143,4.11177154,2432.1,2431.9,10.5039]
[1749156445345,1.6396,2433.2,2431.9,10.5039]
[1749156445658,0.55,2433.8,2432.2,4.11148325]
[1749156445659,4.10957572,2433.4,2432.2,4.11148325]
[1749156445859,4.1104926,2432.8,2432.3,1.6179]
[1749156446158,4.10936673,2433.5,2432.3,1.6179]
[1749156446359,4.10964533,2433.3,2432.3,1.6179]
[1749156446660,4.11135956,2432.3,2431.9,8.886]
[1749156446861,11.079,2432.6,2431.3,1.6479]
[1749156447063,4.11285679,2431.4,2431.3,1.6479]
[1749156447376,4.11353352,2431.0,2430.9,8.886]
[1749156448263,4.11234938,2431.7,2430.9,8.886]
[1749156448264,11.067,2432.2,2430.9,8.886]
[1749156448562,16.0,2432.8,2430.9,8.886]
[1749156448563,1.585,2433.2,2431.1,2.1629]
[1749156448770,4.10983239,2433.2,2432.1,4.11153293]
[1749156448948,4.11120951,2432.4,2432.2,8.887]
[1749156449133,4.11133495,2432.3,2432.2,8.887]
[1749156449574,4.1125185,2431.6,2431.5,1.6129]
[1749156449776,11.055,2432.2,2431.5,1.6129]
[1749156450185,4.11191077,2432.0,2431.5,1.6129]
[1749156450385,11.055,2432.2,2431.5,1.6129]
[1749156450386,4.11228759,2431.8,2431.5,1.6129]
[1749156450537,11.055,2432.2,2431.5,1.6129]
[1749156450934,4.11141983,2432.3,2431.6,4.11241276]
[1749156451139,4.11198562,2432.0,2431.5,1.6129]
[1749156451380,1.6085,2433.3,2431.7,16.0]
[1749156451692,11.029,2433.2,2431.9,1.6294]
[1749156452201,4.11122262,2432.4,2431.9,1.6294]
[1749156452342,4.1118421,2432.0,2431.9,1.6294]
[1749156452541,15.13418901,2432.4,2431.9,1.6294]
[1749156452542,15.13416971,2432.4,2431.9,1.6294]
[1749156452878,11.023,2432.4,2431.9,1.6294]
[1749156453047,1.6327,2433.0,2431.9,1.6294]
[1749156453378,4.11128119,2432.4,2431.9,1.6294]
[1749156453552,1.6327,2433.0,2431.9,1.6294]
[1749156453553,4.11023681,2433.0,2432.0,0.57414856]
[1749156453749,4.11009719,2433.1,2432.5,4.11089362]
[1749156453954,4.11065893,2432.7,2432.6,8.888]
[1749156454154,4.10986676,2433.2,2432.6,12.99873324]
[1749156454354,4.10983811,2433.2,2432.6,8.888]
[1749156454679,1.5486,2434.5,2433.0,16.0]
[1749156454978,1.90086331,2434.5,2433.1,1.6]
[1749156455183,4.10748921,2434.6,2434.0,4.1083408]
[1749156455384,4.10718357,2434.8,2434.1,4.10829464]
[1749156455587,10.974,2434.9,2434.0,8.888]
[1749156455943,4.10694815,2434.9,2434.4,4.10777763]
[1749156456184,4.10753604,2434.6,2434.0,8.888]
[1749156456484,4.10829464,2434.1,2434.0,8.888]
[1749156456841,10.955,2434.3,2434.0,8.888]
[1749156457080,1.11590741,2435.5,2434.0,8.888]
[1749156457081,0.35183907,2435.0,2434.4,4.10774179]
[1749156457241,4.10675327,2435.1,2434.5,4.10748021]
[1749156457444,4.10616174,2435.4,2434.8,4.10699862]
[1749156457639,10.943,2435.3,2434.2,17.5724]
[1749156457877,4.1068821,2435.0,2434.4,16.0]
[1749156458178,10.943,2435.3,2434.4,16.0]
[1749156458353,10.943,2435.3,2434.2,1.5724]
[1749156458560,4.10608177,2435.5,2434.2,1.5724]
[1749156458779,0.2339433,2435.7,2434.4,16.0]
[1749156459092,10.942,2435.5,2434.5,1.6]
[1749156459257,4.45811153,2435.4,2434.2,1.5724]
[1749156459599,10.942,2435.5,2434.2,1.5724]
[1749156459600,4.1075451,2434.6,2434.2,1.5724]
[1749156459881,1.8943433,2435.7,2434.0,8.888]
[1749156460095,4.10598537,2435.5,2434.3,16.0]
[1749156460380,4.10679289,2435.0,2434.5,4.10761963]
[1749156460580,0.2339433,2435.7,2434.3,4.10791918]
[1749156460581,0.2339433,2435.7,2434.3,0.55]
[1749156460792,0.2339433,2435.7,2434.2,1.5058]
[1749156460793,11.1589433,2435.7,2434.2,1.5058]
[1749156460943,0.35137,2435.6,2434.3,4.10793699]
[1749156461172,11.1589433,2435.7,2434.2,1.5058]
[1749156461376,4.10576449,2435.6,2434.2,1.5058]
[1749156461571,0.2339433,2435.7,2434.3,4.10795711]
[1749156461816,10.79596144,2434.8,2433.2,1.5632]
[1749156461967,4.10998314,2433.1,2433.0,8.883]
[1749156462172,15.04498314,2433.1,2433.0,8.883]
[1749156463301,1.5924,2433.0,2431.4,1.5505]
[1749156463485,0.35079563,2432.9,2431.4,1.5505]
[1749156463688,4.11065893,2432.7,2431.4,1.5505]
[1749156464010,17.5924,2433.0,2430.8,8.884]
[1749156464011,4.11170259,2432.1,2431.0,1.6571]
[1749156464210,4.11116592,2432.4,2431.0,5.77062256]
[1749156464211,4.11270232,2431.5,2431.0,5.77062256]
[1749156464414,10.898,2432.0,2431.0,1.6571]
[1749156464713,10.898,2432.0,2430.8,8.884]
[1749156464714,4.11201118,2431.9,2430.8,8.884]
[1749156465015,4.11370274,2430.9,2430.8,8.884]
[1749156465214,14.99770274,2430.9,2430.8,8.884]
[1749156465616,14.99770274,2430.9,2430.1,4.11505699]
[1749156465951,4.11266151,2431.6,2430.9,4.11357316]
[1749156466222,10.79596144,2432.2,2431.0,8.884]
[1749156466223,10.884,2432.2,2431.0,8.884]
[1749156466437,10.884,2432.2,2431.1,9.7744]
[1749156466575,4.11204322,2431.9,2431.2,4.11307386]
[1749156466775,10.884,2432.2,2431.2,4.11319512]
[1749156467075,10.884,2432.2,2431.1,9.7744]
[1749156467514,4.11226613,2431.8,2431.2,4.11308779]
[1749156467710,4.11226613,2431.8,2431.2,5.50183657]
[1749156467908,4.11167303,2432.1,2431.1,9.7744]
[1749156468114,4.11201804,2431.9,2431.2,4.11306173]
[1749156468325,1.5193,2433.0,2431.5,4.11253256]
[1749156468620,4.11064051,2432.8,2431.4,0.55]
[1749156468777,10.887,2432.8,2431.8,16.0]
[1749156468978,1.5193,2434.0,2432.3,16.0]
[1749156469177,1.5193,2434.0,2432.5,16.0]
[1749156469178,14.99669973,2433.9,2432.5,16.0]
[1749156469392,10.888,2433.8,2432.5,16.0]
[1749156469594,10.888,2433.8,2432.9,4.11019249]
[1749156469884,10.888,2433.8,2432.5,16.0]
[1749156470091,2.16350334,2435.5,2433.1,1.5759]
[1749156470092,1.5193,2434.9,2433.1,1.5759]
[1749156470286,4.10791698,2434.4,2433.7,4.10896]
[1749156470499,4.10691585,2435.0,2433.7,8.887]
[1749156470700,1.5193,2435.4,2434.1,1.5759]
[1749156470920,4.10683967,2435.0,2434.3,4.10786578]
[1749156471219,10.888,2435.3,2434.3,0.97918917]
[1749156471402,10.888,2435.3,2434.2,4.10812587]
[1749156471608,4.10647376,2435.2,2434.6,4.10743501]
[1749156471815,14.99432151,2435.3,2434.7,4.10719221]
[1749156471994,10.888,2435.3,2434.8,4.10708936]
[1749156472176,0.2339433,2435.7,2434.1,1.5759]
[1749156472177,0.2339433,2435.7,2434.5,16.0]
[1749156472441,0.2339433,2435.7,2434.2,20.65806375]
[1749156472597,0.2339433,2435.7,2434.8,4.10697484]
[1749156472797,0.2339433,2435.7,2435.4,4.10600255]
[1749156472998,0.2339433,2435.7,2435.1,1.6174]
[1749156473177,0.2339433,2435.7,2435.3,4.10614943]
[1749156473378,0.2339433,2435.7,2435.1,17.6174]
[1749156473579,10.884,2435.6,2435.3,4.10621109]
[1749156473794,0.2339433,2435.7,2435.6,4.10576449]
[1749156474089,0.2339433,2435.7,2435.1,17.6174]
[1749156474293,0.2339433,2435.7,2435.2,4.10633573]
[1749156474490,0.2339433,2435.7,2435.6,4.10576449]
[1749156474693,0.17635524,2436.1,2436.0,4.10509031]
[1749156474910,0.17635524,2436.1,2436.0,5.72759031]
[1749156475222,0.17635524,2436.1,2436.0,21.72759031]
[1749156475406,10.883,2437.3,2436.1,20.1049218]
[1749156475590,10.883,2437.3,2435.2,4.68327357]
[1749156475591,1.658,2436.7,2435.2,4.68327357]
[1749156475775,5.76191413,2436.7,2435.2,1.6225]
[1749156475980,0.34793366,2437.2,2435.5,1.6225]
[1749156476193,10.879,2437.3,2435.9,16.0]
[1749156476389,10.879,2437.3,2436.6,4.10392412]
[1749156476390,14.98199796,2437.3,2436.6,4.10392412]
[1749156476633,10.879,2437.3,2435.9,0.55]
[1749156476848,10.879,2437.3,2436.8,4.10365479]
[1749156477053,0.0163846,2437.7,2436.5,16.0]
[1749156477256,0.0163846,2437.7,2436.7,4.10391102]
[1749156477257,10.879,2437.3,2436.7,4.10391102]
[1749156477530,10.879,2437.3,2436.9,4.10355496]
[1749156477703,0.0163846,2437.7,2436.9,4.10357421]
[1749156477909,0.20499762,2437.7,2437.3,4.10288595]
[1749156478096,0.20499762,2437.7,2437.0,2.17373742]
[1749156478296,0.18861302,2437.6,2436.8,1.6338]
[1749156478525,0.18861302,2437.6,2437.5,4.1025641]
[1749156479535,0.18861302,2437.6,2437.5,22.1597641]
[1749156479734,0.3486053,2438.7,2437.6,1.5072]
[1749156480041,0.17084413,2440.6,2438.8,4.65037723]
[1749156480341,0.17084413,2440.6,2438.7,1.5072]
[1749156480498,10.874,2440.5,2438.7,17.5072]
[1749156480700,10.874,2440.4,2439.0,0.55]
[1749156481024,4.09970482,2439.2,2439.1,8.878]
[1749156481196,4.10019751,2439.0,2438.2,5.60855712]
[1749156481399,10.874,2438.9,2438.2,1.5072]
[1749156481839,4.44617467,2439.5,2438.0,8.878]
[1749156482038,0.55,2440.1,2438.0,8.878]
[1749156482039,4.09936869,2439.4,2438.0,8.878]
[1749156482199,10.867,2439.4,2438.1,16.0]
[1749156482539,4.10155448,2438.1,2438.0,8.878]
[1749156482736,10.867,2438.2,2438.0,8.878]
[1749156483040,1.5413,2439.3,2438.0,8.878]
[1749156483248,4.10155448,2438.1,2438.0,8.878]
[1749156483401,14.96855448,2438.1,2438.0,8.878]
[1749156483602,10.867,2438.1,2437.2,1.528]
[1749156483816,4.10172272,2438.0,2437.2,6.6041953]
[1749156484019,4.10189097,2437.9,2437.2,6.6041953]
[1749156484217,4.10206774,2437.8,2437.2,2.50124794]
[1749156484419,10.866,2438.2,2437.2,1.93813629]
[1749156484741,10.866,2438.2,2437.7,4.10215336]
[1749156484924,10.866,2438.2,2437.5,4.10247306]
[1749156484925,5.65325973,2439.0,2438.2,4.10132414]
[1749156485132,5.65325973,2439.0,2437.2,17.93813629]
[1749156485133,10.864,2438.9,2437.8,16.0]
[1749156485440,4.10037723,2438.8,2437.3,16.0]
[1749156485628,4.10275129,2437.4,2437.2,1.93813629]
[1749156485955,4.10275129,2437.4,2435.7,4.10549056]
[1749156485956,4.10273241,2437.4,2437.3,0.34250301]
[1749156486801,1.5532,2438.0,2437.3,0.34250301]
[1749156487010,1.5224,2439.1,2437.4,1.5067]
[1749156487315,1.5224,2439.1,2437.4,1.84918896]
[1749156487316,4.10187274,2438.0,2437.4,1.84918896]
[1749156487546,10.863,2438.2,2437.4,0.34248896]
[1749156487901,4.0525641,2437.5,2437.4,0.34248896]
[1749156488335,14.9145641,2437.5,2437.4,0.34248896]
[1749156488529,14.9145641,2437.5,2436.7,8.872]
[1749156488530,4.10370596,2436.9,2436.7,8.872]
[1749156488748,4.10323745,2437.1,2436.7,8.872]
[1749156488929,4.10361044,2436.9,2436.0,0.21838]
[1749156489247,4.10474826,2436.3,2436.1,0.34267173]
[1749156489551,10.862,2436.3,2436.1,0.34267173]
[1749156489845,4.1047533,2436.2,2436.1,0.34267173]
[1749156490048,4.10422674,2436.6,2436.1,0.34267173]
[1749156490247,14.9667533,2436.2,2436.1,0.34267173]
[1749156490416,1.5224,2436.9,2436.2,4.10463775]
[1749156490618,10.861,2436.9,2436.3,0.3426436]
[1749156490818,4.10391523,2436.7,2436.3,0.3426436]
[1749156491050,4.10441635,2436.4,2436.3,0.3426436]
[1749156491213,14.96463285,2436.9,2436.3,0.3426436]
[1749156491415,14.96458081,2436.9,2436.4,4.10430876]
[1749156491615,14.96458081,2436.9,2435.8,16.0]
[1749156491616,4.10407945,2436.6,2436.5,0.34261547]
[1749156491952,4.10237171,2437.7,2436.5,0.34261547]
[1749156492151,4.10237171,2437.7,2436.5,4.44683559]
[1749156492152,10.861,2437.4,2436.5,4.44683559]
[1749156492338,5.76285315,2438.0,2436.5,4.44683559]
[1749156492339,4.10199214,2437.9,2437.3,4.10280143]
[1749156492651,4.10047234,2438.8,2437.4,1.88998896]
[1749156492859,1.6494,2439.6,2437.8,10.79596144]
[1749156493076,1.6494,2440.3,2439.5,4.09915854]
[1749156493348,0.2384155,2440.7,2439.4,4.09936869]
[1749156493553,4.09828319,2440.1,2439.5,2.00993687]
[1749156493765,10.861,2440.3,2439.4,1.6308]
[1749156494056,4.2682927,2440.6,2439.9,4.09840984]
[1749156494259,0.17084413,2440.6,2440.3,4.09784922]
[1749156494461,0.17084413,2440.6,2440.5,4.09752099]
[1749156494814,1.5274,2442.1,2440.5,24.87]
[1749156495039,0.005,2442.3,2440.6,19.05984787]
[1749156495255,0.005,2442.3,2440.9,10.79596144]
[1749156495455,0.2384155,2443.1,2442.2,1.6308]
[1749156495668,0.2384155,2443.1,2442.1,8.87]
[1749156495954,4.09447858,2442.4,2442.1,8.87]
[1749156496252,4.09416581,2442.5,2441.1,1.6308]
[1749156496453,4.09433344,2442.4,2441.1,2.68088]
[1749156496612,4.09649146,2441.2,2440.6,3.05984787]
[1749156496812,10.858,2441.1,2439.9,1.5927]
[1749156497047,10.858,2441.1,2440.5,4.09750078]
[1749156497251,1.6412,2441.5,2439.9,1.5927]
[1749156497438,4.09667933,2441.1,2439.9,1.5927]
[1749156497631,1.6412,2441.5,2440.0,0.55]
[1749156497830,1.51,2442.1,2440.4,4.6476889]
[1749156498031,4.09583224,2441.6,2440.8,4.09690029]
[1749156498225,4.0969214,2440.9,2440.2,4.09787893]
[1749156498428,4.0969214,2440.9,2439.7,4.09879699]
[1749156498429,1.5521,2440.9,2439.0,1.5295]
[1749156498617,10.849,2440.8,2439.6,4.09887071]
[1749156498951,4.09748089,2440.6,2439.7,4.09886461]
[1749156499136,4.097252,2440.7,2440.0,4.0982217]
[1749156499309,10.849,2440.8,2440.1,0.34210999]
[1749156499510,1.5521,2441.6,2440.2,5.62743179]
[1749156499749,4.09681192,2441.0,2440.3,16.34208196]
[1749156499947,4.097164,2440.8,2440.4,0.34206794]
[1749156500173,4.09752099,2440.5,2440.4,0.34206794]
[1749156500379,17.04462099,2440.5,2440.4,0.34206794]
[1749156500680,16.55,2439.9,2438.0,1.5295]
[1749156500810,4.09886461,2439.7,2438.2,4.10133423]
[1749156501015,16.0,2440.5,2438.3,0.41013342]
[1749156501241,4.10023154,2438.9,2438.3,4.10107186]
[1749156501450,14.94482485,2439.2,2438.0,5.63107712]
[1749156501765,10.845,2439.2,2438.0,1.5295]
[1749156502063,4.09841404,2440.0,2439.3,4.099417]
[1749156502264,1.6073,2440.3,2439.1,4.0998729]
[1749156502265,4.44711258,2439.9,2439.1,4.0998729]
[1749156502529,4.09949484,2439.4,2439.1,3.06229729]
[1749156502673,4.09836065,2440.0,2439.0,8.862]
[1749156502969,4.0998729,2439.1,2439.0,8.862]
[1749156503171,10.844,2439.2,2439.0,8.862]
[1749156503779,0.34927357,2439.7,2439.1,0.55]
[1749156503935,1.6347,2441.0,2439.8,4.09853205]
[1749156504133,4.09754135,2440.5,2439.2,1.35119596]
[1749156504375,10.844,2441.4,2440.1,1.5799]
[1749156504577,10.844,2441.4,2440.5,4.09736872]
[1749156504578,4.09639571,2441.2,2440.5,4.09736872]
[1749156504884,4.09804221,2440.2,2439.4,17.5704]
[1749156505173,4.09668168,2441.0,2439.7,4.09886461]
[1749156505333,10.843,2441.1,2439.8,16.0]
[1749156505334,4.09790539,2440.3,2439.8,16.0]
[1749156505539,10.843,2441.1,2439.5,16.0]
[1749156505737,4.09698199,2440.9,2439.5,20.64914641]
[1749156505977,4.09912794,2439.6,2439.2,1.35119596]
[1749156506192,4.0973531,2440.6,2438.7,8.20109074]
[1749156506401,4.097978,2440.3,2439.2,16.0]
[1749156506711,4.0976889,2440.4,2439.0,16.0]
[1749156506858,4.09848634,2440.0,2439.4,4.09929345]
[1749156507053,1.5822,2439.9,2438.5,1.97822104]
[1749156507314,4.0989877,2439.7,2439.0,4.0998833]
[1749156507465,14.93859985,2439.9,2439.3,4.09941218]
[1749156507670,4.09796015,2440.3,2439.7,4.09876577]
[1749156507991,1.5822,2440.8,2440.0,4.09834518]
[1749156508193,10.84,2440.7,2440.1,4.09807981]
[1749156508394,4.09691603,2440.9,2440.1,0.81966084]
[1749156508612,4.09647958,2441.2,2440.4,4.09768685]
[1749156508769,4.09658978,2441.1,2440.4,4.09768685]
[1749156508973,1.5834,2441.9,2440.6,0.55]
[1749156509170,12.4234,2441.9,2440.5,1.5089]
[1749156509367,4.09580153,2441.6,2441.0,4.09657528]
[1749156509568,4.0953395,2441.8,2440.5,1.5089]
[1749156509854,10.839,2441.7,2440.5,17.5089]